bitfinex-derivatives/quotes_SOLF0:USTF0_20241009
["timestamp","ask_amount","ask_price","bid_price","bid_amount"]
[1728458781589,8.3778,143.01,142.97,3.4987]
[1728458782390,4.88,143.01,142.97,3.4987]
[1728458782700,3.498,143.0,142.97,3.4987]
[1728458782894,10.74,143.02,142.98,3.4983]
[1728458783088,15.62,143.02,142.98,14.2383]
[1728458783287,3.4979,143.01,142.98,14.2383]
[1728458783491,15.62,143.02,142.99,3.4983]
[1728458783798,15.62,143.02,142.98,10.74]
[1728458784495,10.74,143.01,142.97,10.74]
[1728458784995,10.74,143.01,142.96,3.44823188]
[1728458784996,4.88,143.02,142.98,10.74]
[1728458785191,10.86502,143.03,142.98,10.74]
[1728458785497,3.62242,143.03,142.99,14.22530965]
[1728458785688,0.12502,143.03,142.99,10.74]
[1728458785893,0.12502,143.03,143.02,10.74]
[1728458786091,0.12502,143.03,143.02,14.2375]
[1728458790104,3.62092,143.09,143.05,3.4967]
[1728458790294,3.62092,143.09,143.06,10.74]
[1728458794003,3.4961,143.08,143.06,10.74]
[1728458796004,10.86502,143.09,143.04,10.74]
[1728458797209,3.4965,143.07,143.04,10.74]
[1728458798709,3.4965,143.07,143.03,4.8854]
[1728458798710,3.4965,143.07,143.05,10.74]
[1728458802614,3.4969,143.05,143.03,1.3883]
[1728458802803,10.74,143.08,143.03,10.74]
[1728458803111,15.62,143.08,143.03,10.74]
[1728458803312,3.497,143.05,143.03,10.74]
[1728458803704,15.62,143.08,143.03,10.74]
[1728458804111,3.4969,143.05,143.03,10.74]
[1728458805009,15.62,143.08,143.03,10.74]
[1728458805218,3.4966,143.06,143.03,14.2373]
[1728458810122,3.4966,143.06,143.04,10.74]
[1728458811415,3.4964,143.07,143.04,10.74]
[1728458811613,15.62,143.08,143.04,10.74]
[1728458811912,15.62,143.08,143.03,10.74]
[1728458812507,3.4964,143.07,143.03,10.74]
[1728458812713,15.62,143.08,143.03,10.74]
[1728458813418,3.4969,143.05,143.03,10.74]
[1728458813619,15.62,143.08,143.03,14.2373]
[1728458814312,3.4968,143.05,143.03,3.4973]
[1728458814516,3.4968,143.05,143.03,10.74]
[1728458818424,3.4972,143.04,143.02,10.74]
[1728458818920,3.4969,143.05,143.02,14.2375]
[1728458819218,3.4969,143.05,143.03,10.74]
[1728458821814,3.4969,143.05,143.0,59.69891422]
[1728458822021,3.4969,143.05,143.02,10.74]
[1728458822925,3.4969,143.05,143.02,14.2375]
[1728458824535,4.88,143.08,143.04,14.237]
[1728458824834,4.88,143.08,143.06,10.74]
[1728458825029,8.3762,143.08,143.06,10.74]
[1728458825330,3.4962,143.08,143.06,10.74]
[1728458825627,3.62092,143.09,143.07,10.74]
[1728458826223,0.12502,143.09,143.08,10.74]
[1728458829735,0.12502,143.15,143.08,14.16844804]
[1728458829948,0.12502,143.15,143.12,10.74]
[1728458830132,3.61952,143.15,143.12,14.2351]
[1728458830837,0.12502,143.15,143.12,10.74]
[1728458831039,3.4949,143.13,143.11,10.74]
[1728458831435,10.74,143.14,143.09,20.5025]
[1728458831633,3.4951,143.12,143.09,15.6225]
[1728458831835,3.4951,143.12,143.09,12.1267]
[1728458832745,3.4951,143.12,143.09,15.6225]
[1728458835640,8.3749,143.13,143.09,15.6225]
[1728458837149,3.4951,143.12,143.09,15.6225]
[1728458838052,1.43542,143.15,143.11,10.74]
[1728458838242,4.86,143.14,143.11,10.74]
[1728458838845,4.86,143.14,143.11,14.2352]
[1728458839047,4.86,143.14,143.12,10.74]
[1728458839554,3.61962,143.15,143.12,10.74]
[1728458839850,8.47962,143.15,143.12,10.74]
[1728458840149,0.12502,143.15,143.12,10.74]
[1728458840346,0.12502,143.15,143.13,10.74]
[1728458841449,0.12502,143.15,143.13,14.2347]
[1728458841845,0.12502,143.15,143.14,10.74]
[1728458842455,0.12502,143.15,143.14,14.2346]
[1728458849962,3.4933,143.2,143.16,3.494]
[1728458850257,4.98502,143.21,143.18,10.74]
[1728458851157,3.4933,143.2,143.18,10.74]
[1728458851356,4.98502,143.21,143.17,10.74]
[1728458851557,3.4935,143.19,143.17,10.74]
[1728458851854,10.74,143.2,143.15,1.3367]
[1728458852065,10.74,143.2,143.12,4.86]
[1728458852066,3.4941,143.16,143.12,4.86]
[1728458852252,3.4941,143.16,143.14,10.74]
[1728458852459,4.86,143.18,143.14,10.74]
[1728458852757,3.4941,143.17,143.14,10.74]
[1728458852965,4.86,143.18,143.14,10.74]
[1728458853262,3.4944,143.15,143.14,10.74]
[1728458857259,3.4944,143.15,143.13,10.74]
[1728458860267,3.4939,143.17,143.14,10.74]
[1728458860468,4.86,143.18,143.14,10.74]
[1728458860681,3.4941,143.17,143.14,10.74]
[1728458861065,4.86,143.18,143.14,10.74]
[1728458861269,3.4941,143.17,143.14,10.74]
[1728458861562,4.86,143.18,143.14,10.74]
[1728458861764,3.4942,143.16,143.14,10.74]
[1728458862869,3.4942,143.16,143.13,14.2348]
[1728458866372,3.4944,143.15,143.12,3.495]
[1728458866572,10.74,143.16,143.12,10.74]
[1728458866771,4.86,143.15,143.12,10.74]
[1728458867377,3.4947,143.14,143.12,10.74]
[1728458875375,4.86,143.15,143.11,1.3371]
[1728458875685,3.4952,143.12,143.1,10.74]
[1728458877782,15.6,143.15,143.1,10.74]
[1728458878082,3.495,143.13,143.1,10.74]
[1728458879682,3.495,143.13,143.09,4.95552]
[1728458879877,3.495,143.13,143.1,10.74]
[1728458880281,15.6,143.15,143.1,10.74]
[1728458880483,15.6,143.15,143.09,0.12502]
[1728458880484,10.74,143.13,143.09,0.12502]
[1728458880786,3.4956,143.1,143.09,0.12502]
[1728458881172,3.4954,143.11,143.09,0.12502]
[1728458881573,4.86,143.12,143.09,0.12502]
[1728458881781,3.4953,143.11,143.09,0.12502]
[1728458884381,3.4956,143.1,143.09,0.12502]
[1728458886887,8.3556,143.1,143.09,0.12502]
[1728458893783,4.86,143.11,143.09,17.78033686]
[1728458893993,4.86,143.11,143.1,10.74]
[1728458894579,4.86,143.11,143.1,14.2356]
[1728458895887,4.86,143.12,143.1,14.2356]
[1728458896087,8.355,143.13,143.11,3.4953]
[1728458899287,3.495,143.13,143.11,3.4953]
[1728458901285,3.495,143.13,143.1,14.2355]
[1728458903493,8.3547,143.14,143.11,3.4953]
[1728458903692,8.3547,143.14,143.1,10.74]
[1728458904394,8.3547,143.14,143.1,14.2355]
[1728458904594,3.4949,143.13,143.1,14.2355]
[1728458904993,8.3549,143.13,143.1,14.2355]
[1728458912292,3.4949,143.13,143.1,14.2355]
[1728458913001,3.4945,143.15,143.11,14.2353]
[1728458913208,4.86,143.14,143.11,14.2353]
[1728458913412,4.86,143.14,143.11,10.74]
[1728458914113,3.4949,143.13,143.11,10.74]
[1728458916309,3.4949,143.13,143.1,14.2355]
[1728458917105,3.4952,143.12,143.09,17.78043686]
[1728458920410,10.74,143.12,143.09,3.54473686]
[1728458920616,3.4956,143.1,143.09,0.12502]
[1728458921014,3.4956,143.1,143.09,3.64490709]
[1728458921213,3.4956,143.1,143.09,0.12502]
[1728458921817,3.4956,143.1,143.09,3.5355222]
[1728458925022,3.4956,143.1,143.09,0.12502]
[1728458925520,14.2356,143.1,143.09,0.12502]
[1728458932226,3.4956,143.1,143.09,0.12502]
[1728458938229,10.74,143.13,143.09,0.12502]
[1728458938427,4.86,143.12,143.1,10.74]
[1728458939334,8.3552,143.12,143.1,10.74]
[1728458941347,4.86,143.12,143.1,14.2356]
[1728458942132,8.3551,143.12,143.1,14.2356]
[1728458942331,1.3704,143.18,143.11,14.2352]
[1728458942638,10.74,143.16,143.11,14.2352]
[1728458943639,3.4948,143.14,143.11,14.2352]
[1728458944835,8.3548,143.14,143.11,14.2352]
[1728458945044,3.4951,143.12,143.1,10.74]
[1728458946140,4.86,143.14,143.09,0.12502]
[1728458946342,3.4956,143.11,143.09,0.12502]
[1728458948135,3.4956,143.1,143.09,0.12502]
[1728458949744,10.74,143.12,143.09,0.12502]
[1728458949939,3.4955,143.11,143.09,0.12502]
[1728458950737,8.355,143.13,143.1,10.74]
[1728458953750,8.355,143.13,143.1,14.2356]
[1728458956153,3.4948,143.14,143.11,3.4953]
[1728458956359,4.86,143.14,143.1,10.74]
[1728458956654,4.86,143.14,143.11,10.74]
[1728458957042,8.3548,143.14,143.11,14.2353]
[1728458957551,4.86,143.14,143.11,10.74]
[1728458960458,8.3548,143.14,143.11,10.74]
[1728458961260,3.4948,143.14,143.11,10.74]
[1728458961956,3.4948,143.14,143.1,14.2354]
[1728458963963,3.4948,143.14,143.11,3.4953]
[1728458965463,10.74,143.14,143.09,12.22432]
[1728458965850,3.495,143.13,143.1,14.2356]
[1728458972068,8.3548,143.14,143.12,10.74]
[1728458973071,3.4948,143.14,143.12,10.74]
[1728458986889,4.86,143.15,143.1,10.74]
[1728458987192,3.4948,143.13,143.1,14.2355]
[1728458988585,3.4948,143.13,143.1,3.4955]
[1728458989688,3.4948,143.13,143.09,12.22432]
[1728458989887,3.4948,143.13,143.09,15.72002]
[1728458991101,3.4951,143.12,143.09,15.72002]
[1728458995198,3.4951,143.12,143.09,4.98002]
[1728458995402,4.86,143.15,143.1,10.74]
[1728458995703,3.495,143.13,143.1,10.74]
[1728458996588,3.495,143.13,143.1,14.2356]
[1728459000505,3.4952,143.12,143.1,10.74]
[1728459001008,3.4949,143.13,143.1,14.2356]
[1728459001498,4.86,143.15,143.1,14.2356]
[1728459001695,3.4947,143.14,143.1,14.2356]
[1728459002498,3.4954,143.11,143.09,12.22432]
[1728459002898,10.74,143.14,143.09,0.12502]
[1728459003306,10.74,143.13,143.09,0.12502]
[1728459003607,4.86,143.12,143.09,0.12502]
[1728459003813,3.4956,143.1,143.09,0.12502]
[1728459004504,14.2356,143.1,143.09,0.12502]
[1728459009110,19.0956,143.1,143.09,0.12502]
[1728459011006,14.2356,143.1,143.09,0.12502]
[1728459011207,19.0956,143.1,143.09,0.12502]
[1728459014820,1.409,143.11,143.09,0.12502]
[1728459015110,10.74,143.13,143.09,0.12502]
[1728459015312,4.86,143.12,143.09,0.12502]
[1728459015505,1.3073,143.15,143.1,10.74]
[1728459015710,8.3548,143.14,143.11,3.4952]
[1728459015916,8.3548,143.14,143.11,14.2352]
[1728459016714,4.86,143.14,143.11,10.74]
[1728459016915,4.86,143.14,143.1,14.2355]
[1728459017115,10.74,143.13,143.09,1.48002]
[1728459017305,3.4956,143.1,143.09,0.12502]
[1728459021919,14.2356,143.1,143.09,0.12502]
[1728459029210,3.4956,143.1,143.09,0.12502]
[1728459029416,14.2356,143.1,143.09,0.12502]
[1728459033323,19.0956,143.1,143.09,0.12502]
[1728459035212,1.3957,143.13,143.09,0.12502]
[1728459035417,3.4955,143.11,143.09,0.12502]
[1728459036415,4.86,143.12,143.09,10.86502]
[1728459037022,1.309,143.17,143.1,10.74]
[1728459037322,4.86,143.15,143.1,12.0562]
[1728459037821,3.4948,143.14,143.11,3.4953]
[1728459040030,4.86,143.15,143.1,12.0562]
[1728459040325,4.86,143.14,143.1,12.0562]
[1728459041317,3.4949,143.13,143.1,12.0562]
[1728459041726,4.86,143.14,143.11,10.74]
[1728459041923,4.86,143.14,143.11,14.2353]
[1728459041924,3.4947,143.14,143.11,14.2353]
[1728459042118,4.86,143.15,143.11,10.74]
[1728459042318,4.86,143.15,143.13,3.4947]
[1728459042517,4.86,143.15,143.12,10.74]
[1728459042518,8.3544,143.15,143.12,10.74]
[1728459042926,3.4944,143.15,143.12,10.74]
[1728459043137,8.3544,143.15,143.12,10.74]
[1728459043631,8.3544,143.15,143.12,14.2349]
[1728459043928,3.4948,143.14,143.11,14.2352]
[1728459045429,3.4948,143.14,143.11,10.74]
[1728459045629,3.4948,143.14,143.12,3.4951]
[1728459045825,4.86,143.15,143.12,3.4951]
[1728459046026,4.86,143.15,143.11,3.4953]
[1728459046234,4.86,143.15,143.1,12.0562]
[1728459047030,4.86,143.14,143.1,12.0562]
[1728459047526,3.495,143.13,143.1,15.5516]
[1728459048231,3.495,143.13,143.1,12.0562]
[1728459049028,3.495,143.13,143.1,15.5516]
[1728459051230,3.495,143.13,143.11,10.74]
[1728459051432,3.495,143.13,143.11,14.2353]
[1728459052231,3.4947,143.14,143.11,14.2353]
[1728459056139,4.86,143.15,143.11,10.74]
[1728459056437,8.3542,143.16,143.13,14.2347]
[1728459056635,4.86,143.17,143.14,10.74]
[1728459056828,8.354,143.17,143.14,14.2345]
[1728459058141,3.494,143.17,143.14,14.2345]
[1728459058328,8.354,143.17,143.14,14.2345]
[1728459059040,3.494,143.17,143.14,14.2345]
[1728459060339,3.494,143.17,143.14,10.74]
[1728459060546,3.494,143.17,143.15,3.4944]
[1728459061434,106.13538684,143.18,143.15,3.4944]
[1728459065251,101.27538684,143.18,143.15,3.4944]
[1728459065442,101.27538684,143.18,143.15,14.2344]
[1728459067349,3.4941,143.17,143.14,14.2345]
[1728459072445,102.64158684,143.18,143.14,14.2345]
[1728459072646,3.4944,143.15,143.13,14.2348]
[1728459073151,3.4944,143.15,143.13,10.74]
[1728459073354,3.4949,143.13,143.1,1.3162]
[1728459073657,3.4949,143.13,143.1,15.5516]
[1728459076257,3.4952,143.12,143.1,1.3162]
[1728459076555,15.6,143.15,143.1,1.3162]
[1728459077545,3.495,143.13,143.11,10.74]
[1728459077851,15.6,143.15,143.11,10.74]
[1728459078855,3.4951,143.12,143.11,10.74]
[1728459079156,4.86,143.15,143.11,10.74]
[1728459079970,3.4949,143.13,143.11,10.74]
[1728459080759,3.4949,143.13,143.11,14.2353]
[1728459084168,4.86,143.14,143.11,10.74]
[1728459084363,3.4951,143.12,143.1,1.3162]
[1728459084863,3.4951,143.12,143.1,4.8118]
[1728459085060,3.4951,143.12,143.11,10.74]
[1728459085454,4.86,143.14,143.11,10.74]
[1728459085668,3.4949,143.13,143.11,10.74]
[1728459090966,3.4949,143.13,143.1,3.4956]
[1728459092969,2.7208,143.17,143.12,10.74]
[1728459093174,3.4946,143.15,143.14,10.74]
[1728459093370,3.4946,143.15,143.12,10.74]
[1728459093565,4.86,143.16,143.13,3.4948]
[1728459093869,4.86,143.16,143.12,10.74]
[1728459094665,3.4945,143.15,143.12,14.235]
[1728459097965,4.86,143.16,143.12,10.74]
[1728459098170,3.4948,143.14,143.11,14.2352]
[1728459100963,4.86,143.16,143.11,10.74]
[1728459101273,3.4944,143.15,143.14,10.74]
[1728459101460,3.4944,143.15,143.13,10.74]
[1728459102069,8.3543,143.16,143.13,14.2348]
[1728459102271,3.4943,143.16,143.13,14.2348]
[1728459102460,8.3543,143.16,143.13,10.74]
[1728459102775,8.3538,143.18,143.15,10.74]
[1728459103473,3.4938,143.18,143.15,14.2344]
[1728459103662,3.4938,143.18,143.16,10.74]
[1728459107877,3.4936,143.18,143.16,10.74]
[1728459112784,3.4939,143.17,143.16,10.74]
[1728459112980,3.4939,143.17,143.15,14.2344]
[1728459115882,173.37150021,143.21,143.16,10.74]
[1728459116085,3.4936,143.18,143.16,10.74]
[1728459118386,3.4936,143.18,143.16,14.2341]
[1728459119089,3.4935,143.19,143.16,14.2341]
[1728459119689,3.4936,143.18,143.16,14.2341]
[1728459120790,3.4936,143.18,143.16,10.74]
[1728459120983,3.4939,143.17,143.14,10.74]
[1728459121492,3.4939,143.17,143.14,14.2344]
[1728459121789,3.4945,143.15,143.11,4.86]
[1728459121988,4.86,143.17,143.09,9.11322]
[1728459122284,4.86,143.17,143.12,14.235]
[1728459122285,15.6,143.17,143.12,14.235]
[1728459122491,15.6,143.17,143.12,10.74]
[1728459123201,3.4944,143.15,143.12,3.495]
[1728459123387,3.4944,143.15,143.12,14.235]
[1728459125793,3.4944,143.15,143.12,3.495]
[1728459125992,4.86,143.17,143.12,14.235]
[1728459126193,3.4947,143.14,143.12,10.74]
[1728459128500,3.4949,143.13,143.11,14.2353]
[1728459129793,4.86,143.14,143.09,6.38252]
[1728459129794,3.4951,143.12,143.09,6.38252]
[1728459129996,10.74,143.13,143.09,0.12502]
[1728459130198,10.74,143.12,143.09,0.12502]
[1728459130383,3.4956,143.1,143.09,0.12502]
[1728459133393,4.86,143.11,143.09,10.86502]
[1728459133593,10.74,143.15,143.1,10.74]
[1728459133897,4.86,143.14,143.1,10.74]
[1728459134293,3.4951,143.13,143.1,14.2355]
[1728459134699,4.86,143.14,143.1,10.74]
[1728459135001,10.74,143.15,143.1,10.74]
[1728459135198,4.86,143.13,143.1,10.74]
[1728459136603,3.4953,143.11,143.1,10.74]
[1728459137999,4.86,143.12,143.1,10.74]
[1728459138210,8.3552,143.12,143.1,10.74]
[1728459139108,3.4952,143.12,143.1,10.74]
[1728459140211,15.6,143.13,143.09,0.12502]
[1728459140393,10.74,143.13,143.09,0.12502]
[1728459140599,4.86,143.12,143.09,0.12502]
[1728459141006,10.74,143.13,143.09,0.12502]
[1728459141309,3.4956,143.1,143.09,0.12502]
[1728459143507,8.3552,143.12,143.09,14.36082]
[1728459143706,8.3552,143.12,143.09,10.86502]
[1728459144409,8.3552,143.12,143.09,14.36072]
[1728459144803,4.86,143.12,143.09,14.36072]
[1728459145003,3.4953,143.11,143.09,14.36072]
[1728459145409,4.86,143.13,143.09,14.36072]
[1728459145610,3.4952,143.12,143.09,14.36072]
[1728459146812,4.86,143.14,143.11,10.74]
[1728459147011,4.86,143.14,143.12,10.74]
[1728459147398,1.4413,143.17,143.12,10.74]
[1728459147607,3.4945,143.15,143.12,14.235]
[1728459148009,99.21286998,143.2,143.14,10.74]
[1728459148311,3.4944,143.15,143.14,10.74]
[1728459150103,3.4944,143.15,143.12,14.235]
[1728459150310,3.4948,143.14,143.1,4.8604]
[1728459150613,4.86,143.16,143.11,10.74]
[1728459151513,3.4948,143.14,143.11,10.74]
[1728459152216,3.4948,143.14,143.11,14.2353]
[1728459152508,3.4948,143.14,143.12,10.74]
[1728459153407,3.4946,143.14,143.12,10.74]
[1728459154803,3.4943,143.16,143.13,14.2348]
[1728459155006,8.3543,143.16,143.13,14.2348]
[1728459156814,8.3543,143.16,143.13,10.74]
[1728459156815,3.4944,143.15,143.13,10.74]
[1728459157913,8.354,143.17,143.14,10.74]
[1728459158515,4.86,143.17,143.16,10.74]
[1728459159118,3.4938,143.18,143.16,10.74]
[1728459159318,3.4938,143.18,143.17,10.74]
[1728459160517,4.86,143.19,143.17,10.74]
[1728459160729,8.3536,143.19,143.17,10.74]
[1728459161925,3.4936,143.18,143.17,10.74]
[1728459163217,4.86,143.19,143.17,10.74]
[1728459163418,8.3534,143.19,143.17,10.74]
[1728459163835,3.4934,143.19,143.17,10.74]
[1728459165032,3.4934,143.19,143.18,10.74]
[1728459165228,106.10686998,143.2,143.18,10.74]
[1728459165633,97.77356998,143.2,143.18,10.74]
[1728459165823,0.12502,143.21,143.19,14.2333]
[1728459166025,0.12502,143.21,143.2,10.74]
[1728459167419,0.12502,143.21,143.2,14.2331]
[1728459171020,0.12502,143.21,143.2,15.5561]
[1728459171221,0.12502,143.27,143.2,12.063]
[1728459171523,0.12502,143.27,143.26,10.74]
[1728459176330,3.61642,143.27,143.24,3.492]
[1728459176525,3.61642,143.27,143.26,10.74]
[1728459178433,0.12502,143.27,143.26,10.74]
[1728459178629,0.12502,143.27,143.26,14.2317]
[1728459179239,4.84,143.35,143.26,12.0572]
[1728459179439,3.4899,143.34,143.32,10.74]
[1728459179825,6.2753,143.36,143.32,10.74]
[1728459180032,1.4353,143.36,143.32,10.74]
[1728459180228,3.4897,143.35,143.32,10.74]
[1728459180428,4.84,143.36,143.29,3.4909]
[1728459180429,15.58,143.36,143.29,3.4909]
[1728459180637,15.58,143.36,143.31,10.74]
[1728459180835,3.4902,143.32,143.31,10.74]
[1728459181734,15.58,143.36,143.26,2.6813]
[1728459181929,4.84,143.36,143.3,10.74]
[1728459182131,4.84,143.36,143.32,10.74]
[1728459183131,143.1502838,143.38,143.32,10.74]
[1728459183325,143.1502838,143.38,143.35,10.74]
[1728459183939,3.4892,143.37,143.35,10.74]
[1728459184246,143.1502838,143.38,143.31,4.84]
[1728459184539,143.1502838,143.38,143.34,10.74]
[1728459184743,3.4896,143.35,143.34,10.74]
[1728459185640,3.4893,143.36,143.34,10.74]
[1728459185831,3.4893,143.36,143.35,10.74]
[1728459186538,3.4891,143.37,143.35,10.74]
[1728459186745,3.4891,143.37,143.36,10.74]
[1728459189539,3.4888,143.38,143.36,10.74]
[1728459190343,3.4888,143.38,143.37,10.74]
[1728459194448,3.61362,143.39,143.37,10.74]
[1728459194649,3.61362,143.39,143.38,10.74]
[1728459195348,0.12502,143.39,143.38,10.74]
[1728459196140,3.61352,143.39,143.38,10.74]
[1728459196552,3.4891,143.37,143.34,4.92]
[1728459196844,10.86502,143.39,143.35,10.74]
[1728459197454,3.4894,143.36,143.35,10.74]
[1728459198457,10.74,143.38,143.33,10.74]
[1728459199956,12.152,143.38,143.3,8.4105]
[1728459200255,10.74,143.37,143.33,10.74]
[1728459200455,4.92,143.36,143.33,10.74]
[1728459200658,3.4897,143.34,143.33,10.74]
[1728459201352,3.4904,143.32,143.31,10.74]
[1728459202768,15.66,143.36,143.28,9.8182]
[1728459202769,3.4909,143.3,143.28,6.3272]
[1728459202953,10.74,143.34,143.29,10.74]
[1728459203359,3.4909,143.3,143.29,10.74]
[1728459205772,3.4912,143.28,143.27,0.12502]
[1728459205970,3.4912,143.28,143.27,10.86502]
[1728459206374,3.4908,143.3,143.27,10.86502]
[1728459206581,3.4908,143.3,143.29,10.74]
[1728459208468,4.92,143.33,143.27,0.12502]
[1728459208771,3.4912,143.28,143.27,0.12502]
[1728459210373,3.4912,143.28,143.27,10.86502]
[1728459210678,8.411,143.29,143.27,10.86502]
[1728459210881,8.411,143.29,143.28,10.74]
[1728459211176,4.92,143.31,143.27,0.12502]
[1728459211372,14.2312,143.28,143.27,0.12502]
[1728459211573,19.1512,143.28,143.27,0.12502]
[1728459211873,8.4112,143.28,143.27,0.12502]
[1728459213265,19.1512,143.28,143.27,0.12502]
[1728459213470,3.4926,143.23,143.21,10.86502]
[1728459213770,4.92,143.25,143.21,10.86502]
[1728459214376,3.4927,143.22,143.21,0.12502]
[1728459215568,3.4927,143.22,143.21,10.86502]
[1728459215977,8.4121,143.25,143.21,14.35782]
[1728459216172,8.4121,143.25,143.24,10.74]
[1728459216480,4.92,143.25,143.24,10.74]
[1728459216682,3.4918,143.26,143.24,10.74]
[1728459217173,1.3042,143.3,143.25,10.74]
[1728459217374,4.94,143.29,143.25,10.74]
[1728459217778,3.4916,143.27,143.25,10.74]
[1728459217980,4.94,143.29,143.25,10.74]
[1728459218472,4.94,143.29,143.24,3.4921]
[1728459218473,3.4914,143.28,143.24,3.4921]
[1728459218976,3.4914,143.28,143.23,16.75]
[1728459218977,3.4914,143.28,143.25,3.4919]
[1728459220076,8.4311,143.29,143.25,3.4918]
[1728459220377,4.94,143.29,143.25,3.4918]
[1728459220577,3.4912,143.28,143.25,3.4918]
[1728459220774,4.94,143.29,143.25,3.4918]
[1728459221182,8.4311,143.29,143.25,3.4918]
[1728459221578,8.4311,143.29,143.23,16.75]
[1728459221780,3.4908,143.3,143.25,16.75]
[1728459221979,3.4908,143.3,143.25,20.24895725]
[1728459222384,3.4908,143.3,143.27,20.2413]
[1728459222579,0.12502,143.33,143.28,16.75]
[1728459222780,0.12502,143.33,143.28,20.20916067]
[1728459223082,0.12502,143.33,143.31,3.4904]
[1728459223886,0.12502,143.33,143.3,3.4906]
[1728459224275,0.12502,143.33,143.29,3.4908]
[1728459224477,0.12502,143.33,143.28,20.20916067]
[1728459225079,0.12502,143.33,143.31,3.4905]
[1728459225481,3.4912,143.29,143.15,82.49372]
[1728459225683,5.06502,143.33,143.25,3.4917]
[1728459225684,16.75,143.32,143.25,3.4917]
[1728459225881,5.06502,143.33,143.25,16.75]
[1728459226889,3.4909,143.3,143.26,3.4916]
[1728459227187,4.94,143.3,143.22,1.4351]
[1728459227487,3.4921,143.25,143.22,16.75]
[1728459229192,4.94,143.27,143.23,3.4924]
[1728459229884,8.4316,143.27,143.23,3.4924]
[1728459230687,16.75,143.31,143.24,16.75]
[1728459230887,8.4308,143.3,143.26,3.4915]
[1728459231079,3.4908,143.3,143.26,3.4915]
[1728459231276,6.3438,143.32,143.26,16.75]
[1728459231477,3.4906,143.31,143.27,3.4913]
[1728459231681,4.94,143.32,143.26,18.1276]
[1728459231880,4.94,143.32,143.26,19.4878]
[1728459232082,8.4304,143.32,143.28,3.491]
[1728459232284,0.12502,143.33,143.3,16.75]
[1728459232787,3.61512,143.33,143.3,16.75]
[1728459233391,3.61512,143.33,143.26,7.6778]
[1728459233392,3.61512,143.33,143.28,16.75]
[1728459233793,3.4902,143.32,143.29,3.4909]
[1728459234888,0.12502,143.33,143.29,3.4909]
[1728459235198,3.61512,143.33,143.29,3.4909]
[1728459235398,0.12502,143.33,143.31,3.4904]
[1728459235999,0.12502,143.33,143.26,2.7378]
[1728459236188,3.4909,143.3,143.26,6.2294]
[1728459236383,5.06502,143.33,143.26,6.2294]
[1728459236589,3.4911,143.29,143.26,6.2294]
[1728459237695,3.4908,143.3,143.26,6.2294]
[1728459238189,4.94,143.3,143.22,16.75]